[Event "Titled Tuesday Blitz November 15 Late 2022"]
[White "Tari, Aryan"]
[Black "Bayo Milagro, Alvaro"]
[WhiteFideId "1510045"]
[BlackFideId "22275240"]
[WhiteElo "2612"]
[BlackElo "2270"]
[Result "1-0"]
[Round "02"]
[TimeControl "180+1"]
[Date "2022.11.15"]
[WhiteClock "0:00:06"]
[BlackClock "0:00:01"]

1. Nf3 {[%clk 0:02:57]}  Nf6 {[%clk 0:02:59]} 2. g3 {[%clk 0:02:45]}  g6 {[%clk 0:02:57]} 3. d4 {[%clk 0:02:44]}  Bg7 {[%clk 0:02:57]} 4. Bg2 {[%clk 0:02:45]}  O-O {[%clk 0:02:58]} 5. O-O {[%clk 0:02:45]}  d6 {[%clk 0:02:58]} 6. c4 {[%clk 0:02:45]}  c6 {[%clk 0:02:57]} 7. Nc3 {[%clk 0:02:40]}  Qb6 {[%clk 0:02:58]} 8. b3 {[%clk 0:02:39]}  Qa5 {[%clk 0:02:48]} 9. Bb2 {[%clk 0:02:38]}  Qh5 {[%clk 0:02:47]} 10. e4 {[%clk 0:02:31]}  Bh3 {[%clk 0:02:47]} 11. e5 {[%clk 0:02:16]}  Ng4 {[%clk 0:02:29]} 12. Ne4 {[%clk 0:02:06]}  Bxg2 {[%clk 0:01:51]} 13. Kxg2 {[%clk 0:02:06]}  dxe5 {[%clk 0:01:50]} 14. dxe5 {[%clk 0:01:41]}  Qf5 {[%clk 0:01:30]} 15. Qd4 {[%clk 0:01:19]}  Nd7 {[%clk 0:01:10]} 16. h3 {[%clk 0:01:03]}  Ngxe5 {[%clk 0:01:04]} 17. Nh4 {[%clk 0:01:03]}  Qe6 {[%clk 0:00:39]} 18. f4 {[%clk 0:00:57]}  c5 {[%clk 0:00:30]} 19. Qc3 {[%clk 0:00:50]}  Qc6 {[%clk 0:00:29]} 20. Rae1 {[%clk 0:00:50]}  Nf6 {[%clk 0:00:22]} 21. Qxe5 {[%clk 0:00:42]}  Nh5 {[%clk 0:00:23]} 22. Qg5 {[%clk 0:00:38]}  Bxb2 {[%clk 0:00:20]} 23. Nf5 {[%clk 0:00:38]}  Bf6 {[%clk 0:00:18]} 24. Qxf6 {[%clk 0:00:28]}  Qxe4+ {[%clk 0:00:07]} 25. Rxe4 {[%clk 0:00:27]}  Nxf6 {[%clk 0:00:08]} 26. Nxe7+ {[%clk 0:00:26]}  Kg7 {[%clk 0:00:08]} 27. Re5 {[%clk 0:00:24]}  Rfe8 {[%clk 0:00:07]} 28. Rfe1 {[%clk 0:00:23]}  b6 {[%clk 0:00:06]} 29. Nc6 {[%clk 0:00:11]}  Rxe5 {[%clk 0:00:04]} 30. fxe5 {[%clk 0:00:12]}  Nd7 {[%clk 0:00:03]} 31. e6 {[%clk 0:00:12]}  fxe6 {[%clk 0:00:03]} 32. Rxe6 {[%clk 0:00:13]}  Nf8 {[%clk 0:00:03]} 33. Re7+ {[%clk 0:00:13]}  Kf6 {[%clk 0:00:03]} 34. Rxa7 {[%clk 0:00:11]}  Rxa7 {[%clk 0:00:04]} 35. Nxa7 {[%clk 0:00:12]}  Ke5 {[%clk 0:00:03]} 36. Nc6+ {[%clk 0:00:11]}  Ke4 {[%clk 0:00:02]} 37. a4 {[%clk 0:00:10]}  Kd3 {[%clk 0:00:02]} 38. Ne7 {[%clk 0:00:08]}  Kc3 {[%clk 0:00:02]} 39. Nd5+ {[%clk 0:00:08]}  Kxb3 {[%clk 0:00:03]} 40. Nxb6 {[%clk 0:00:09]}  Ne6 {[%clk 0:00:03]} 41. a5 {[%clk 0:00:09]}  Nc7 {[%clk 0:00:04]} 42. Kf3 {[%clk 0:00:08]}  Kb4 {[%clk 0:00:05]} 43. Ke4 {[%clk 0:00:05]}  Kxa5 {[%clk 0:00:05]} 44. Nd5 {[%clk 0:00:05]}  Ne6 {[%clk 0:00:04]} 45. Ke5 {[%clk 0:00:06]}  Nd4 {[%clk 0:00:04]} 46. Kd6 {[%clk 0:00:06]}  Ne2 {[%clk 0:00:03]} 47. g4 {[%clk 0:00:05]}  Ng1 {[%clk 0:00:04]} 48. h4 {[%clk 0:00:05]}  Nf3 {[%clk 0:00:05]} 49. h5 {[%clk 0:00:05]}  gxh5 {[%clk 0:00:06]} 50. gxh5 {[%clk 0:00:06]}  Nd2 {[%clk 0:00:06]} 51. Kxc5 {[%clk 0:00:06]}  Ka6 {[%clk 0:00:07]} 52. Nf6 {[%clk 0:00:04]}  h6 {[%clk 0:00:07]} 53. Kd5 {[%clk 0:00:03]}  Kb6 {[%clk 0:00:06]} 54. c5+ {[%clk 0:00:04]}  Kc7 {[%clk 0:00:07]} 55. Ne8+ {[%clk 0:00:03]}  Kd8 {[%clk 0:00:06]} 56. Ng7 {[%clk 0:00:03]}  Nf3 {[%clk 0:00:06]} 57. Nf5 {[%clk 0:00:03]}  Ng5 {[%clk 0:00:05]} 58. Nxh6 {[%clk 0:00:03]}  Nh7 {[%clk 0:00:05]} 59. Nf7+ {[%clk 0:00:03]}  Ke7 {[%clk 0:00:05]} 60. c6 {[%clk 0:00:04]}  Nf6+ {[%clk 0:00:05]} 61. Kc5 {[%clk 0:00:04]}  Kxf7 {[%clk 0:00:06]} 62. c7 {[%clk 0:00:04]}  Nd7+ {[%clk 0:00:04]} 63. Kc6 {[%clk 0:00:05]}  Ne5+ {[%clk 0:00:05]} 64. Kb7 {[%clk 0:00:05]}  Nc4 {[%clk 0:00:05]} 65. Kc6 {[%clk 0:00:05]}  Ne5+ {[%clk 0:00:04]} 66. Kd6 {[%clk 0:00:06]}  Nc4+ {[%clk 0:00:04]} 67. Kc5 {[%clk 0:00:06]}  Nd6 {[%clk 0:00:01]} 68. Kxd6 {[%clk 0:00:06]} 1-0


[Site "https://www.chess.com"]

[Event "Titled Tuesday Blitz November 15 Late 2022"]
[White "Terry, Renato"]
[Black "Sokolovsky, Yahli"]
[WhiteFideId "3803457"]
[BlackFideId "2820242"]
[WhiteElo "2577"]
[BlackElo "2316"]
[Result "1-0"]
[Round "02"]
[TimeControl "180+1"]
[Date "2022.11.15"]
[WhiteClock "0:01:16"]
[BlackClock "0:00:02"]

1. e4 {[%clk 0:02:52]}  d6 {[%clk 0:02:59]} 2. d4 {[%clk 0:02:52]}  g6 {[%clk 0:02:59]} 3. Nc3 {[%clk 0:02:53]}  Bg7 {[%clk 0:03:00]} 4. Be3 {[%clk 0:02:52]}  a6 {[%clk 0:03:00]} 5. h3 {[%clk 0:02:47]}  b5 {[%clk 0:02:59]} 6. g4 {[%clk 0:02:48]}  Bb7 {[%clk 0:02:59]} 7. Bg2 {[%clk 0:02:48]}  Nd7 {[%clk 0:02:59]} 8. Nge2 {[%clk 0:02:39]}  Rc8 {[%clk 0:02:59]} 9. O-O {[%clk 0:02:37]}  c5 {[%clk 0:02:57]} 10. d5 {[%clk 0:02:37]}  Ngf6 {[%clk 0:02:52]} 11. Qd2 {[%clk 0:02:29]}  Nb6 {[%clk 0:02:35]} 12. Bh6 {[%clk 0:02:08]}  Nc4 {[%clk 0:02:35]} 13. Qc1 {[%clk 0:02:06]}  Bxh6 {[%clk 0:02:27]} 14. Qxh6 {[%clk 0:02:07]}  Nxb2 {[%clk 0:02:27]} 15. g5 {[%clk 0:02:02]}  Nh5 {[%clk 0:02:26]} 16. Bf3 {[%clk 0:01:59]}  Nc4 {[%clk 0:01:28]} 17. Bxh5 {[%clk 0:01:53]}  gxh5 {[%clk 0:01:29]} 18. Ng3 {[%clk 0:01:53]}  Rg8 {[%clk 0:01:03]} 19. f4 {[%clk 0:01:51]}  Kd7 {[%clk 0:00:58]} 20. Qxh7 {[%clk 0:01:49]}  f6 {[%clk 0:00:53]} 21. h4 {[%clk 0:01:43]}  Ne3 {[%clk 0:00:44]} 22. Rf2 {[%clk 0:01:37]}  fxg5 {[%clk 0:00:31]} 23. hxg5 {[%clk 0:01:37]}  h4 {[%clk 0:00:21]} 24. Nf5 {[%clk 0:01:29]}  Rh8 {[%clk 0:00:21]} 25. Qf7 {[%clk 0:01:29]}  Nxf5 {[%clk 0:00:19]} 26. exf5 {[%clk 0:01:29]}  Kc7 {[%clk 0:00:20]} 27. f6 {[%clk 0:01:29]}  Kb8 {[%clk 0:00:07]} 28. Qxe7 {[%clk 0:01:27]}  Qb6 {[%clk 0:00:07]} 29. Ne4 {[%clk 0:01:27]}  Rcd8 {[%clk 0:00:07]} 30. f7 {[%clk 0:01:26]}  c4 {[%clk 0:00:06]} 31. Rd1 {[%clk 0:01:24]}  h3 {[%clk 0:00:05]} 32. Kh2 {[%clk 0:01:24]}  Qe3 {[%clk 0:00:05]} 33. Rdd2 {[%clk 0:01:22]}  c3 {[%clk 0:00:05]} 34. Rde2 {[%clk 0:01:20]}  Qd4 {[%clk 0:00:05]} 35. g6 {[%clk 0:01:17]}  b4 {[%clk 0:00:04]} 36. Qf6 {[%clk 0:01:16]}  Qxd5 {[%clk 0:00:03]} 37. g7 {[%clk 0:01:15]}  Rhg8 {[%clk 0:00:02]} 38. f8=Q {[%clk 0:01:14]}  Rdxf8 {[%clk 0:00:02]} 39. gxf8=Q+ {[%clk 0:01:15]}  Rxf8 {[%clk 0:00:02]} 40. Qxf8+ {[%clk 0:01:16]} 1-0


[Site "https://www.chess.com"]

[Event "Titled Tuesday Blitz November 15 Late 2022"]
[White "Thiel, Thomas"]
[Black "Miszler, Levente"]
[WhiteFideId "4615964"]
[BlackFideId "763276"]
[WhiteElo "2228"]
[BlackElo "2176"]
[Result "1/2-1/2"]
[Round "02"]
[TimeControl "180+1"]
[Date "2022.11.16"]
[WhiteClock "0:01:14"]
[BlackClock "0:01:24"]

1. e4 {[%clk 0:03:00]}  e6 {[%clk 0:02:59]} 2. d4 {[%clk 0:02:59]}  d5 {[%clk 0:02:59]} 3. Nc3 {[%clk 0:02:58]}  f5 {[%clk 0:02:58]} 4. exf5 {[%clk 0:02:55]}  exf5 {[%clk 0:02:59]} 5. Qf3 {[%clk 0:02:53]}  Nf6 {[%clk 0:02:57]} 6. Bg5 {[%clk 0:02:50]}  Bb4 {[%clk 0:02:54]} 7. O-O-O {[%clk 0:02:45]}  c6 {[%clk 0:02:47]} 8. Re1+ {[%clk 0:02:40]}  Kf7 {[%clk 0:02:47]} 9. Bd3 {[%clk 0:02:25]}  h6 {[%clk 0:02:46]} 10. Bd2 {[%clk 0:02:22]}  g6 {[%clk 0:02:39]} 11. Nh3 {[%clk 0:02:14]}  Nbd7 {[%clk 0:02:25]} 12. Nf4 {[%clk 0:02:11]}  Nf8 {[%clk 0:02:24]} 13. h4 {[%clk 0:02:08]}  Ne6 {[%clk 0:02:23]} 14. Nxe6 {[%clk 0:02:07]}  Bxe6 {[%clk 0:02:24]} 15. h5 {[%clk 0:02:06]}  Nxh5 {[%clk 0:01:59]} 16. Bxf5 {[%clk 0:02:03]}  Bxf5 {[%clk 0:01:58]} 17. g4 {[%clk 0:01:59]}  Bxc3 {[%clk 0:01:52]} 18. bxc3 {[%clk 0:01:56]}  Ng7 {[%clk 0:01:51]} 19. Rxh6 {[%clk 0:01:54]}  Rxh6 {[%clk 0:01:32]} 20. Bxh6 {[%clk 0:01:55]}  Qh4 {[%clk 0:01:32]} 21. Bxg7 {[%clk 0:01:50]}  Kxg7 {[%clk 0:01:32]} 22. gxf5 {[%clk 0:01:48]}  Qg5+ {[%clk 0:01:30]} 23. Kb2 {[%clk 0:01:48]}  Qxf5 {[%clk 0:01:29]} 24. Qxf5 {[%clk 0:01:48]}  gxf5 {[%clk 0:01:29]} 25. Re7+ {[%clk 0:01:47]}  Kf6 {[%clk 0:01:29]} 26. Rxb7 {[%clk 0:01:48]}  Kg5 {[%clk 0:01:28]} 27. c4 {[%clk 0:01:47]}  dxc4 {[%clk 0:01:27]} 28. Kc3 {[%clk 0:01:47]}  Re8 {[%clk 0:01:26]} 29. Rxa7 {[%clk 0:01:38]}  Re2 {[%clk 0:01:25]} 30. Rf7 {[%clk 0:01:34]}  Rxf2 {[%clk 0:01:25]} 31. a4 {[%clk 0:01:34]}  Rf1 {[%clk 0:01:25]} 32. Kxc4 {[%clk 0:01:30]}  Ra1 {[%clk 0:01:24]} 33. Kb4 {[%clk 0:01:29]}  f4 {[%clk 0:01:24]} 34. a5 {[%clk 0:01:29]}  Kg4 {[%clk 0:01:24]} 35. Kc5 {[%clk 0:01:28]}  Rxa5+ {[%clk 0:01:23]} 36. Kxc6 {[%clk 0:01:28]}  Ra4 {[%clk 0:01:22]} 37. d5 {[%clk 0:01:26]}  Rc4+ {[%clk 0:01:21]} 38. Kb7 {[%clk 0:01:20]}  Rxc2 {[%clk 0:01:22]} 39. d6 {[%clk 0:01:19]}  Rd2 {[%clk 0:01:23]} 40. Kc7 {[%clk 0:01:19]}  f3 {[%clk 0:01:23]} 41. d7 {[%clk 0:01:19]}  Kg3 {[%clk 0:01:24]} 42. d8=Q {[%clk 0:01:17]}  Rxd8 {[%clk 0:01:22]} 43. Kxd8 {[%clk 0:01:18]}  f2 {[%clk 0:01:23]} 44. Kd7 {[%clk 0:01:16]}  Kg2 {[%clk 0:01:23]} 45. Kd6 {[%clk 0:01:16]}  f1=Q {[%clk 0:01:23]} 46. Rxf1 {[%clk 0:01:14]}  Kxf1 {[%clk 0:01:24]} 1/2-1/2


[Site "https://www.chess.com"]

[Event "Titled Tuesday Blitz November 15 Late 2022"]
[White "Tomiello, Lucas Costamilan"]
[Black "Young, Ryan"]
[WhiteFideId "22701940"]
[BlackFideId "2049945"]
[WhiteElo "2085"]
[BlackElo "2297"]
[Result "1-0"]
[Round "02"]
[TimeControl "180+1"]
[Date "2022.11.16"]
[WhiteClock "0:00:19"]
[BlackClock "0:00:04"]

1. e4 {[%clk 0:03:00]}  e5 {[%clk 0:02:59]} 2. Nf3 {[%clk 0:03:00]}  Nc6 {[%clk 0:03:00]} 3. Bb5 {[%clk 0:03:00]}  a6 {[%clk 0:03:00]} 4. Ba4 {[%clk 0:03:01]}  b5 {[%clk 0:03:00]} 5. Bb3 {[%clk 0:03:01]}  Na5 {[%clk 0:03:01]} 6. Nxe5 {[%clk 0:02:54]}  Nxb3 {[%clk 0:02:58]} 7. axb3 {[%clk 0:02:55]}  Qg5 {[%clk 0:02:59]} 8. Ng4 {[%clk 0:02:23]}  d5 {[%clk 0:02:38]} 9. Ne3 {[%clk 0:02:19]}  d4 {[%clk 0:02:29]} 10. Nf1 {[%clk 0:01:52]}  Qxg2 {[%clk 0:02:16]} 11. Ng3 {[%clk 0:01:52]}  Nf6 {[%clk 0:02:09]} 12. f3 {[%clk 0:01:30]}  Bd6 {[%clk 0:01:56]} 13. e5 {[%clk 0:01:05]}  Bxe5 {[%clk 0:01:43]} 14. Qe2 {[%clk 0:01:05]}  Qxe2+ {[%clk 0:01:39]} 15. Nxe2 {[%clk 0:01:06]}  Bb7 {[%clk 0:01:34]} 16. O-O {[%clk 0:01:03]}  c5 {[%clk 0:01:21]} 17. d3 {[%clk 0:01:03]}  O-O {[%clk 0:01:21]} 18. Nd2 {[%clk 0:01:00]}  Rfe8 {[%clk 0:01:10]} 19. Ne4 {[%clk 0:01:00]}  Nxe4 {[%clk 0:01:06]} 20. fxe4 {[%clk 0:01:01]}  f6 {[%clk 0:01:04]} 21. Bf4 {[%clk 0:00:59]}  Rac8 {[%clk 0:01:02]} 22. Rf2 {[%clk 0:00:56]}  c4 {[%clk 0:00:57]} 23. bxc4 {[%clk 0:00:56]}  bxc4 {[%clk 0:00:58]} 24. h4 {[%clk 0:00:34]}  cxd3 {[%clk 0:00:57]} 25. cxd3 {[%clk 0:00:35]}  Rc2 {[%clk 0:00:52]} 26. Bxe5 {[%clk 0:00:34]}  fxe5 {[%clk 0:00:48]} 27. Ng3 {[%clk 0:00:32]}  Rec8 {[%clk 0:00:47]} 28. Raf1 {[%clk 0:00:31]}  Rxf2 {[%clk 0:00:39]} 29. Rxf2 {[%clk 0:00:32]}  Rf8 {[%clk 0:00:24]} 30. Nf5 {[%clk 0:00:31]}  g6 {[%clk 0:00:17]} 31. Ne7+ {[%clk 0:00:30]}  Kg7 {[%clk 0:00:17]} 32. Rc2 {[%clk 0:00:30]}  Rf7 {[%clk 0:00:15]} 33. Rc7 {[%clk 0:00:30]}  Ba8 {[%clk 0:00:14]} 34. Ra7 {[%clk 0:00:21]}  h6 {[%clk 0:00:07]} 35. Rxa8 {[%clk 0:00:19]}  Rxe7 {[%clk 0:00:07]} 36. Rxa6 {[%clk 0:00:19]}  Rb7 {[%clk 0:00:07]} 37. Re6 {[%clk 0:00:19]}  Rxb2 {[%clk 0:00:06]} 38. Rxe5 {[%clk 0:00:20]}  Kf6 {[%clk 0:00:06]} 39. Rd5 {[%clk 0:00:19]}  Rb4 {[%clk 0:00:07]} 40. Kf2 {[%clk 0:00:19]}  Ke6 {[%clk 0:00:07]} 41. Kf3 {[%clk 0:00:19]}  Ra4 {[%clk 0:00:07]} 42. Kf4 {[%clk 0:00:19]}  Rb4 {[%clk 0:00:07]} 43. Re5+ {[%clk 0:00:17]}  Kf6 {[%clk 0:00:07]} 44. Ra5 {[%clk 0:00:17]}  Rb3 {[%clk 0:00:06]} 45. e5+ {[%clk 0:00:17]}  Kf7 {[%clk 0:00:06]} 46. Ke4 {[%clk 0:00:18]}  Rb4 {[%clk 0:00:05]} 47. Rd5 {[%clk 0:00:18]}  g5 {[%clk 0:00:05]} 48. hxg5 {[%clk 0:00:18]}  hxg5 {[%clk 0:00:05]} 49. Rxd4 {[%clk 0:00:18]}  Rb1 {[%clk 0:00:06]} 50. Kf5 {[%clk 0:00:18]}  Rg1 {[%clk 0:00:06]} 51. Rd7+ {[%clk 0:00:18]}  Ke8 {[%clk 0:00:06]} 52. Rg7 {[%clk 0:00:19]}  Rd1 {[%clk 0:00:05]} 53. Ke4 {[%clk 0:00:18]}  Re1+ {[%clk 0:00:04]} 54. Kd5 {[%clk 0:00:19]}  Rd1 {[%clk 0:00:05]} 55. d4 {[%clk 0:00:20]}  g4 {[%clk 0:00:05]} 56. Rxg4 {[%clk 0:00:20]}  Ra1 {[%clk 0:00:06]} 57. e6 {[%clk 0:00:20]}  Ra5+ {[%clk 0:00:07]} 58. Ke4 {[%clk 0:00:19]}  Ke7 {[%clk 0:00:06]} 59. d5 {[%clk 0:00:19]}  Ra4+ {[%clk 0:00:06]} 60. Kf5 {[%clk 0:00:19]}  Ra1 {[%clk 0:00:05]} 61. Rg7+ {[%clk 0:00:19]}  Kf8 {[%clk 0:00:06]} 62. Rb7 {[%clk 0:00:19]}  Ke8 {[%clk 0:00:06]} 63. Ke5 {[%clk 0:00:19]}  Ra6 {[%clk 0:00:06]} 64. d6 {[%clk 0:00:18]}  Kf8 {[%clk 0:00:02]} 65. Kf6 {[%clk 0:00:17]}  Kg8 {[%clk 0:00:02]} 66. Rb8+ {[%clk 0:00:17]}  Kh7 {[%clk 0:00:02]} 67. e7 {[%clk 0:00:17]}  Rxd6+ {[%clk 0:00:02]} 68. Ke5 {[%clk 0:00:18]}  Rd1 {[%clk 0:00:02]} 69. e8=Q {[%clk 0:00:18]}  Re1+ {[%clk 0:00:03]} 70. Kf4 {[%clk 0:00:19]}  Rxe8 {[%clk 0:00:04]} 71. Rxe8 {[%clk 0:00:19]} 1-0


[Site "https://www.chess.com"]

[Event "Titled Tuesday Blitz November 15 Late 2022"]
[White "Vlassov, Nikolai"]
[Black "Yano, William Jorge Froes"]
[WhiteFideId "4103360"]
[BlackFideId "2112949"]
[WhiteElo "2324"]
[BlackElo "2122"]
[Result "1-0"]
[Round "02"]
[TimeControl "180+1"]
[Date "2022.11.16"]
[WhiteClock "0:00:16"]
[BlackClock "0:00:12"]

1. e4 {[%clk 0:03:00]}  e6 {[%clk 0:03:00]} 2. d4 {[%clk 0:03:00]}  d5 {[%clk 0:03:00]} 3. exd5 {[%clk 0:03:00]}  exd5 {[%clk 0:03:00]} 4. Nf3 {[%clk 0:03:01]}  Nc6 {[%clk 0:03:01]} 5. Bd3 {[%clk 0:03:00]}  Bd6 {[%clk 0:03:01]} 6. O-O {[%clk 0:03:00]}  Nge7 {[%clk 0:03:01]} 7. Re1 {[%clk 0:02:59]}  Bg4 {[%clk 0:03:01]} 8. c3 {[%clk 0:02:57]}  Qd7 {[%clk 0:03:01]} 9. Nbd2 {[%clk 0:02:56]}  O-O-O {[%clk 0:02:59]} 10. b4 {[%clk 0:02:55]}  Rdg8 {[%clk 0:02:59]} 11. b5 {[%clk 0:02:55]}  Nd8 {[%clk 0:02:51]} 12. Qa4 {[%clk 0:02:39]}  Kb8 {[%clk 0:02:51]} 13. Ne5 {[%clk 0:02:38]}  Bxe5 {[%clk 0:02:46]} 14. dxe5 {[%clk 0:02:39]}  h5 {[%clk 0:02:39]} 15. Nb3 {[%clk 0:02:36]}  Ne6 {[%clk 0:02:33]} 16. Be3 {[%clk 0:02:31]}  Nc8 {[%clk 0:02:24]} 17. f3 {[%clk 0:02:22]}  g5 {[%clk 0:02:23]} 18. fxg4 {[%clk 0:02:21]}  hxg4 {[%clk 0:02:24]} 19. Qxg4 {[%clk 0:02:19]}  Rh4 {[%clk 0:02:20]} 20. Qg3 {[%clk 0:02:18]}  Rgh8 {[%clk 0:01:51]} 21. h3 {[%clk 0:02:14]}  g4 {[%clk 0:01:51]} 22. hxg4 {[%clk 0:02:14]}  Ne7 {[%clk 0:00:52]} 23. Rf1 {[%clk 0:02:05]}  d4 {[%clk 0:00:48]} 24. Nxd4 {[%clk 0:01:55]}  Nxd4 {[%clk 0:00:48]} 25. Bxd4 {[%clk 0:01:53]}  Rxg4 {[%clk 0:00:48]} 26. Qf3 {[%clk 0:01:45]}  Rhg8 {[%clk 0:00:48]} 27. Rf2 {[%clk 0:01:43]}  Rg3 {[%clk 0:00:45]} 28. Qe4 {[%clk 0:01:37]}  Qh3 {[%clk 0:00:43]} 29. Rd1 {[%clk 0:01:17]}  Ng6 {[%clk 0:00:34]} 30. Kf1 {[%clk 0:01:10]}  Qh2 {[%clk 0:00:28]} 31. Ke2 {[%clk 0:01:02]}  Nh4 {[%clk 0:00:26]} 32. Rdf1 {[%clk 0:00:56]}  Nxg2 {[%clk 0:00:23]} 33. e6 {[%clk 0:00:38]}  Qh5+ {[%clk 0:00:24]} 34. Kd2 {[%clk 0:00:36]}  fxe6 {[%clk 0:00:23]} 35. Rf8+ {[%clk 0:00:33]}  Qe8 {[%clk 0:00:20]} 36. Rxe8+ {[%clk 0:00:32]}  Rxe8 {[%clk 0:00:21]} 37. Qxe6 {[%clk 0:00:25]}  Rgg8 {[%clk 0:00:15]} 38. Qd5 {[%clk 0:00:21]}  Nh4 {[%clk 0:00:15]} 39. Rf7 {[%clk 0:00:18]}  Rd8 {[%clk 0:00:14]} 40. Qc5 {[%clk 0:00:17]}  Rc8 {[%clk 0:00:12]} 41. Qxa7# {[%clk 0:00:16]} 1-0


[Site "https://www.chess.com"]

[Event "Titled Tuesday Blitz November 15 Late 2022"]
[White "Vujic, Mihailo"]
[Black "Papasimakopoulos, Alexandros"]
[WhiteFideId "918873"]
[BlackFideId "4244125"]
[WhiteElo "2256"]
[BlackElo "2365"]
[Result "0-1"]
[Round "02"]
[TimeControl "180+1"]
[Date "2022.11.16"]
[WhiteClock "0:00:01"]
[BlackClock "0:01:42"]

1. e4 {[%clk 0:02:59]}  e6 {[%clk 0:03:00]} 2. d4 {[%clk 0:02:55]}  d5 {[%clk 0:03:00]} 3. Nc3 {[%clk 0:02:52]}  Bb4 {[%clk 0:02:59]} 4. a3 {[%clk 0:02:48]}  Bxc3+ {[%clk 0:02:59]} 5. bxc3 {[%clk 0:02:48]}  dxe4 {[%clk 0:03:00]} 6. Qg4 {[%clk 0:02:48]}  Nf6 {[%clk 0:03:01]} 7. Qxg7 {[%clk 0:02:47]}  Rg8 {[%clk 0:03:02]} 8. Qh6 {[%clk 0:02:47]}  Rg6 {[%clk 0:03:03]} 9. Qh4 {[%clk 0:02:47]}  c5 {[%clk 0:03:04]} 10. Ne2 {[%clk 0:02:46]}  Qa5 {[%clk 0:03:04]} 11. Bg5 {[%clk 0:02:38]}  Nbd7 {[%clk 0:03:03]} 12. Bxf6 {[%clk 0:02:24]}  Nxf6 {[%clk 0:03:04]} 13. dxc5 {[%clk 0:02:23]}  Qxc5 {[%clk 0:02:56]} 14. Qf4 {[%clk 0:02:14]}  e5 {[%clk 0:02:55]} 15. Qe3 {[%clk 0:02:11]}  Qxe3 {[%clk 0:02:55]} 16. fxe3 {[%clk 0:02:11]}  h5 {[%clk 0:02:53]} 17. Ng3 {[%clk 0:02:10]}  h4 {[%clk 0:02:50]} 18. Bb5+ {[%clk 0:02:09]}  Ke7 {[%clk 0:02:50]} 19. Ne2 {[%clk 0:02:04]}  a6 {[%clk 0:02:43]} 20. Bc4 {[%clk 0:01:58]}  b5 {[%clk 0:02:43]} 21. Bb3 {[%clk 0:01:57]}  Rxg2 {[%clk 0:02:44]} 22. Rf1 {[%clk 0:01:47]}  Bg4 {[%clk 0:02:38]} 23. Rf2 {[%clk 0:01:46]}  h3 {[%clk 0:02:31]} 24. Ng3 {[%clk 0:01:42]}  Bf3 {[%clk 0:02:26]} 25. Nf5+ {[%clk 0:01:40]}  Kf8 {[%clk 0:02:26]} 26. Rxg2 {[%clk 0:01:35]}  hxg2 {[%clk 0:02:25]} 27. Kf2 {[%clk 0:01:36]}  Rd8 {[%clk 0:02:22]} 28. Kg3 {[%clk 0:01:29]}  Rd2 {[%clk 0:02:20]} 29. a4 {[%clk 0:01:25]}  bxa4 {[%clk 0:02:18]} 30. Bc4 {[%clk 0:01:19]}  Nh5+ {[%clk 0:02:17]} 31. Kh4 {[%clk 0:01:18]}  Rxc2 {[%clk 0:02:14]} 32. Rb1 {[%clk 0:01:17]}  Ke8 {[%clk 0:02:13]} 33. Rb7 {[%clk 0:01:11]}  Rd2 {[%clk 0:01:57]} 34. Bxf7+ {[%clk 0:00:52]}  Kd8 {[%clk 0:01:55]} 35. Rb1 {[%clk 0:00:10]}  Rf2 {[%clk 0:01:43]} 36. Bxh5 {[%clk 0:00:04]}  Rf1 {[%clk 0:01:43]} 37. Bxf3 {[%clk 0:00:03]}  exf3 {[%clk 0:01:42]} 38. Rb8+ {[%clk 0:00:01]}  Kc7 {[%clk 0:01:42]} 0-1


[Site "https://www.chess.com"]

[Event "Titled Tuesday Blitz November 15 Late 2022"]
[White "Ward, Ieuan C"]
[Black "Pichot, Alan"]
[WhiteFideId "406627"]
[BlackFideId "110973"]
[WhiteElo "2342"]
[BlackElo "2560"]
[Result "0-1"]
[Round "02"]
[TimeControl "180+1"]
[Date "2022.11.16"]
[WhiteClock "0:00:26"]
[BlackClock "0:02:05"]

1. d4 {[%clk 0:02:58]}  g6 {[%clk 0:02:55]} 2. c4 {[%clk 0:02:58]}  d6 {[%clk 0:02:55]} 3. Nc3 {[%clk 0:02:58]}  Bg7 {[%clk 0:02:55]} 4. Nf3 {[%clk 0:02:58]}  Nd7 {[%clk 0:02:54]} 5. g3 {[%clk 0:02:58]}  e5 {[%clk 0:02:55]} 6. Bg2 {[%clk 0:02:57]}  a5 {[%clk 0:02:55]} 7. dxe5 {[%clk 0:02:55]}  dxe5 {[%clk 0:02:55]} 8. O-O {[%clk 0:02:54]}  Ngf6 {[%clk 0:02:55]} 9. h3 {[%clk 0:02:53]}  O-O {[%clk 0:02:56]} 10. Be3 {[%clk 0:02:53]}  c6 {[%clk 0:02:55]} 11. Qc2 {[%clk 0:02:39]}  Re8 {[%clk 0:02:55]} 12. Rad1 {[%clk 0:02:31]}  Qe7 {[%clk 0:02:56]} 13. b3 {[%clk 0:02:10]}  Nc5 {[%clk 0:02:54]} 14. Rfe1 {[%clk 0:01:55]}  Bf5 {[%clk 0:02:53]} 15. Qc1 {[%clk 0:01:52]}  Nfd7 {[%clk 0:02:38]} 16. Bg5 {[%clk 0:01:49]}  f6 {[%clk 0:02:36]} 17. Bh6 {[%clk 0:01:45]}  Nf8 {[%clk 0:02:36]} 18. Bxg7 {[%clk 0:01:44]}  Kxg7 {[%clk 0:02:37]} 19. Nh4 {[%clk 0:01:40]}  Bd7 {[%clk 0:02:37]} 20. Ne4 {[%clk 0:01:36]}  Nxe4 {[%clk 0:02:36]} 21. Bxe4 {[%clk 0:01:36]}  Bxh3 {[%clk 0:02:37]} 22. Qc3 {[%clk 0:01:20]}  Ne6 {[%clk 0:02:36]} 23. Kh2 {[%clk 0:01:17]}  Ng5 {[%clk 0:02:31]} 24. Bh1 {[%clk 0:01:08]}  Bg4 {[%clk 0:02:25]} 25. f3 {[%clk 0:01:04]}  Be6 {[%clk 0:02:25]} 26. f4 {[%clk 0:01:02]}  Nf7 {[%clk 0:02:21]} 27. e4 {[%clk 0:00:57]}  Qb4 {[%clk 0:02:18]} 28. Qf3 {[%clk 0:00:53]}  Rad8 {[%clk 0:02:17]} 29. f5 {[%clk 0:00:50]}  Ng5 {[%clk 0:02:15]} 30. Qg4 {[%clk 0:00:47]}  Bc8 {[%clk 0:02:10]} 31. Nf3 {[%clk 0:00:37]}  Nf7 {[%clk 0:02:08]} 32. Qh4 {[%clk 0:00:31]}  Qc3 {[%clk 0:02:05]} 33. fxg6 {[%clk 0:00:29]}  hxg6 {[%clk 0:02:05]} 34. Rxd8 {[%clk 0:00:27]}  Rxd8 {[%clk 0:02:06]} 35. Rf1 {[%clk 0:00:26]}  Rh8 {[%clk 0:02:05]} 0-1


[Site "https://www.chess.com"]